[Event "*** SCC Grand Prix: Titled Tuesday Blitz"]
[Site "Chess.com"]
[Date "2020.06.23"]
[Round "4"]
[White "Gareth-Bale11"]
[Black "RusPakhom"]
[Result "1-0"]
[WhiteElo "2729"]
[BlackElo "2362"]
[TimeControl "180+1"]
[EndTime "10:40:19 PDT"]
[Termination "Gareth-Bale11 won by resignation"]

1. d4 {[%clk 0:03:00.9]} 1... d6 {[%clk 0:02:59.9]} 2. Nf3 {[%clk 0:02:58.2]}
2... g6 {[%clk 0:02:59.8]} 3. h4 {[%clk 0:02:51.9]} 3... h5 {[%clk 0:02:52.7]}
4. Bg5 {[%clk 0:02:49.4]} 4... Bg7 {[%clk 0:02:51.5]} 5. Nc3 {[%clk 0:02:49]}
5... Nd7 {[%clk 0:02:48.2]} 6. e4 {[%clk 0:02:48.6]} 6... a6 {[%clk 0:02:45.6]}
7. a4 {[%clk 0:02:46.9]} 7... c5 {[%clk 0:02:45]} 8. d5 {[%clk 0:02:33.2]} 8...
Ngf6 {[%clk 0:02:44.2]} 9. Be2 {[%clk 0:02:27.4]} 9... O-O {[%clk 0:02:44.2]}
10. O-O {[%clk 0:02:27.4]} 10... Qc7 {[%clk 0:02:42.1]} 11. Re1 {[%clk
0:02:26.9]} 11... Re8 {[%clk 0:02:18.2]} 12. Nd2 {[%clk 0:02:14.9]} 12... Rb8
{[%clk 0:02:05.9]} 13. a5 {[%clk 0:02:09.7]} 13... b5 {[%clk 0:02:00]} 14. axb6
{[%clk 0:02:08.7]} 14... Rxb6 {[%clk 0:01:17.6]} 15. Nc4 {[%clk 0:02:07.5]}
15... Rb8 {[%clk 0:01:17.8]} 16. Qd2 {[%clk 0:02:03.9]} 16... Nb6 {[%clk
0:01:07.3]} 17. Na5 {[%clk 0:02:01.8]} 17... Ra8 {[%clk 0:00:27.5]} 18. f3
{[%clk 0:01:39.7]} 18... Nfd7 {[%clk 0:00:27.3]} 19. Nc6 {[%clk 0:01:07.5]}
19... Ne5 {[%clk 0:00:26]} 20. Nxe5 {[%clk 0:01:07.5]} 20... Bxe5 {[%clk
0:00:26.2]} 21. Bf4 {[%clk 0:01:07.5]} 21... Bd4+ {[%clk 0:00:25.6]} 22. Be3
{[%clk 0:01:07.2]} 22... Bf6 {[%clk 0:00:25.2]} 23. Bf2 {[%clk 0:01:00.4]} 23...
e6 {[%clk 0:00:20.4]} 24. dxe6 {[%clk 0:00:53.9]} 24... fxe6 {[%clk 0:00:19.8]}
25. Bf1 {[%clk 0:00:49.4]} 25... Bb7 {[%clk 0:00:18.7]} 26. Bg3 {[%clk
0:00:35.8]} 26... Red8 {[%clk 0:00:17.2]} 27. Rad1 {[%clk 0:00:33.3]} 27... Bd4+
{[%clk 0:00:17.1]} 28. Kh2 {[%clk 0:00:33.4]} 28... Qf7 {[%clk 0:00:13.3]} 29.
b3 {[%clk 0:00:28.2]} 29... d5 {[%clk 0:00:12.2]} 30. e5 {[%clk 0:00:22.5]}
30... Nd7 {[%clk 0:00:09.1]} 31. Ne2 {[%clk 0:00:20.1]} 31... Rac8 {[%clk
0:00:05.8]} 32. Nxd4 {[%clk 0:00:19.4]} 32... cxd4 {[%clk 0:00:05.8]} 33. Bd3
{[%clk 0:00:19.3]} 33... Nc5 {[%clk 0:00:04.6]} 34. Bf1 {[%clk 0:00:18.7]} 34...
Nd7 {[%clk 0:00:04.4]} 35. Rc1 {[%clk 0:00:19]} 35... Qg7 {[%clk 0:00:02.8]} 36.
Qxd4 {[%clk 0:00:19]} 36... Rc6 {[%clk 0:00:03.4]} 37. c4 {[%clk 0:00:18.3]}
37... Rdc8 {[%clk 0:00:03.4]} 38. Rcd1 {[%clk 0:00:18.7]} 38... dxc4 {[%clk
0:00:03.7]} 39. Qxd7 {[%clk 0:00:17.9]} 39... Qxd7 {[%clk 0:00:03.9]} 40. Rxd7
{[%clk 0:00:17.7]} 40... cxb3 {[%clk 0:00:04.4]} 41. Rxb7 {[%clk 0:00:17.3]}
41... Rc3 {[%clk 0:00:04.5]} 42. Rb1 {[%clk 0:00:17]} 42... a5 {[%clk
0:00:03.9]} 43. R7xb3 {[%clk 0:00:16.7]} 43... Rxb3 {[%clk 0:00:04.4]} 44. Rxb3
{[%clk 0:00:16.8]} 44... Rc1 {[%clk 0:00:05]} 45. Bb5 {[%clk 0:00:16.8]} 45...
Rc5 {[%clk 0:00:05.1]} 46. Bd7 {[%clk 0:00:16.6]} 46... Kf7 {[%clk 0:00:05.3]}
47. Rb7 {[%clk 0:00:16]} 47... Ke7 {[%clk 0:00:05.5]} 48. Bc8+ {[%clk
0:00:15.9]} 48... Kd8 {[%clk 0:00:05.6]} 49. Bxe6 {[%clk 0:00:16]} 1-0

[Event "*** SCC Grand Prix: Titled Tuesday Blitz"]
[Site "Chess.com"]
[Date "2020.06.23"]
[Round "4"]
[White "EvgenyRomanov"]
[Black "adriangschnitzer"]
[Result "0-1"]
[WhiteElo "2636"]
[BlackElo "2481"]
[TimeControl "180+1"]
[EndTime "10:40:20 PDT"]
[Termination "adriangschnitzer won on time"]

1. b3 {[%clk 0:03:00.9]} 1... e5 {[%clk 0:02:52.5]} 2. Bb2 {[%clk 0:02:59.5]}
2... Nc6 {[%clk 0:02:51.1]} 3. c4 {[%clk 0:02:59.6]} 3... Nf6 {[%clk 0:02:50.6]}
4. d3 {[%clk 0:02:57.1]} 4... d5 {[%clk 0:02:50]} 5. cxd5 {[%clk 0:02:56.3]}
5... Nxd5 {[%clk 0:02:50.9]} 6. Nf3 {[%clk 0:02:55.4]} 6... Bb4+ {[%clk
0:02:48.8]} 7. Nbd2 {[%clk 0:02:54.3]} 7... f6 {[%clk 0:02:43.8]} 8. e4 {[%clk
0:02:49.7]} 8... Nf4 {[%clk 0:02:41]} 9. a3 {[%clk 0:02:42]} 9... Bc5 {[%clk
0:02:33.1]} 10. b4 {[%clk 0:02:40.8]} 10... Bb6 {[%clk 0:02:30.7]} 11. Nc4
{[%clk 0:02:39.3]} 11... O-O {[%clk 0:02:20.2]} 12. g3 {[%clk 0:02:24.8]} 12...
Ne6 {[%clk 0:02:16.5]} 13. Bg2 {[%clk 0:02:19.8]} 13... Ned4 {[%clk 0:02:14.9]}
14. Nxb6 {[%clk 0:02:16.7]} 14... axb6 {[%clk 0:02:13.1]} 15. Nd2 {[%clk
0:01:58.3]} 15... f5 {[%clk 0:02:00.8]} 16. exf5 {[%clk 0:01:53.5]} 16... Bxf5
{[%clk 0:01:58.9]} 17. Ne4 {[%clk 0:01:48.9]} 17... Bxe4 {[%clk 0:01:48]} 18.
Bxe4 {[%clk 0:01:39.5]} 18... b5 {[%clk 0:01:23.3]} 19. O-O {[%clk 0:01:37.9]}
19... Qf6 {[%clk 0:01:21.7]} 20. Kg2 {[%clk 0:01:35.9]} 20... Kh8 {[%clk
0:01:15.9]} 21. Qh5 {[%clk 0:01:33.4]} 21... g6 {[%clk 0:01:13.7]} 22. Qh6
{[%clk 0:01:32.3]} 22... Rf7 {[%clk 0:00:57.9]} 23. f4 {[%clk 0:01:28.9]} 23...
Raf8 {[%clk 0:00:32.6]} 24. fxe5 {[%clk 0:00:18]} 24... Qxe5 {[%clk 0:00:31.9]}
25. Rxf7 {[%clk 0:00:15.4]} 25... Rxf7 {[%clk 0:00:28.6]} 26. Rf1 {[%clk
0:00:10.2]} 26... Rxf1 {[%clk 0:00:18.1]} 27. Kxf1 {[%clk 0:00:11.1]} 27... Qf6+
{[%clk 0:00:18.1]} 28. Kg2 {[%clk 0:00:11]} 28... Kg8 {[%clk 0:00:10]} 29. Qe3
{[%clk 0:00:09.8]} 29... Nc2 {[%clk 0:00:03.5]} 30. Bd5+ {[%clk 0:00:09.3]}
30... Kf8 {[%clk 0:00:02.6]} 31. Qc5+ {[%clk 0:00:09.4]} 31... Qd6 {[%clk
0:00:02.5]} 32. Qxc2 {[%clk 0:00:10.3]} 32... Qxd5+ {[%clk 0:00:02.5]} 33. Kg1
{[%clk 0:00:08.5]} 33... Kg8 {[%clk 0:00:03]} 34. Qf2 {[%clk 0:00:07.5]} 34...
Qf7 {[%clk 0:00:02.3]} 35. Qxf7+ {[%clk 0:00:06.6]} 35... Kxf7 {[%clk
0:00:03.2]} 36. Kf2 {[%clk 0:00:07.1]} 36... Ke6 {[%clk 0:00:03.6]} 37. Ke3
{[%clk 0:00:07.3]} 37... Kd5 {[%clk 0:00:04.5]} 38. g4 {[%clk 0:00:06.6]} 38...
Nd8 {[%clk 0:00:04.2]} 39. h3 {[%clk 0:00:06.7]} 39... c6 {[%clk 0:00:04.6]} 40.
Bf6 {[%clk 0:00:06.6]} 40... Ne6 {[%clk 0:00:05.5]} 41. h4 {[%clk 0:00:04.3]}
41... b6 {[%clk 0:00:05.2]} 42. h5 {[%clk 0:00:03.9]} 42... gxh5 {[%clk
0:00:04.7]} 43. gxh5 {[%clk 0:00:03.5]} 43... c5 {[%clk 0:00:05.6]} 44. bxc5
{[%clk 0:00:02.7]} 44... bxc5 {[%clk 0:00:06.5]} 45. Bb2 {[%clk 0:00:02]} 45...
c4 {[%clk 0:00:04.2]} 46. dxc4+ {[%clk 0:00:01.9]} 46... Kxc4 {[%clk 0:00:05.1]}
47. Ke4 {[%clk 0:00:02.1]} 47... Kb3 {[%clk 0:00:05.3]} 48. Bc1 {[%clk
0:00:01.9]} 48... Nc5+ {[%clk 0:00:05.3]} 49. Kf5 {[%clk 0:00:01.2]} 49... Nd3
{[%clk 0:00:05.3]} 0-1

[Event "*** SCC Grand Prix: Titled Tuesday Blitz"]
[Site "Chess.com"]
[Date "2020.06.23"]
[Round "4"]
[White "Firouzja2003"]
[Black "OK97"]
[Result "1-0"]
[WhiteElo "3131"]
[BlackElo "2835"]
[TimeControl "180+1"]
[EndTime "10:40:23 PDT"]
[Termination "Firouzja2003 won by checkmate"]

1. d4 {[%clk 0:03:00.8]} 1... d6 {[%clk 0:02:59.1]} 2. Nf3 {[%clk 0:02:58.3]}
2... Nf6 {[%clk 0:02:59.3]} 3. Nc3 {[%clk 0:02:51.2]} 3... g6 {[%clk 0:02:59]}
4. e4 {[%clk 0:02:48.9]} 4... Bg7 {[%clk 0:02:59.5]} 5. Be2 {[%clk 0:02:44]}
5... O-O {[%clk 0:02:59]} 6. O-O {[%clk 0:02:43.5]} 6... c6 {[%clk 0:02:59.3]}
7. Re1 {[%clk 0:02:39.5]} 7... Nbd7 {[%clk 0:02:57.6]} 8. e5 {[%clk 0:02:11.2]}
8... dxe5 {[%clk 0:02:56.9]} 9. Nxe5 {[%clk 0:02:05.3]} 9... Nxe5 {[%clk
0:02:32.3]} 10. dxe5 {[%clk 0:02:06.2]} 10... Qxd1 {[%clk 0:02:32.3]} 11. Rxd1
{[%clk 0:02:06.2]} 11... Nd7 {[%clk 0:02:16.2]} 12. f4 {[%clk 0:02:05.6]} 12...
Nb6 {[%clk 0:02:09]} 13. Be3 {[%clk 0:02:00.8]} 13... Bf5 {[%clk 0:01:59.5]} 14.
Rd2 {[%clk 0:01:59]} 14... f6 {[%clk 0:01:54.9]} 15. exf6 {[%clk 0:01:33.4]}
15... Bxf6 {[%clk 0:01:44.5]} 16. a4 {[%clk 0:01:29.8]} 16... Bxc3 {[%clk
0:01:33.9]} 17. bxc3 {[%clk 0:01:29.5]} 17... Nd5 {[%clk 0:01:34.4]} 18. Bc4
{[%clk 0:01:27.9]} 18... e6 {[%clk 0:01:32.6]} 19. Bxd5 {[%clk 0:01:13.5]} 19...
exd5 {[%clk 0:01:31.6]} 20. a5 {[%clk 0:01:13.3]} 20... a6 {[%clk 0:01:24.4]}
21. Rb1 {[%clk 0:01:10.4]} 21... Rf7 {[%clk 0:01:22.5]} 22. h3 {[%clk
0:01:04.4]} 22... Re8 {[%clk 0:01:18.6]} 23. Bd4 {[%clk 0:01:04.3]} 23... Re4
{[%clk 0:01:07.5]} 24. Rf2 {[%clk 0:00:53.2]} 24... Bc8 {[%clk 0:00:59.3]} 25.
Rbf1 {[%clk 0:00:49.8]} 25... Rfe7 {[%clk 0:00:54.5]} 26. g4 {[%clk 0:00:48]}
26... Re2 {[%clk 0:00:52.8]} 27. f5 {[%clk 0:00:45.2]} 27... gxf5 {[%clk
0:00:50.9]} 28. gxf5 {[%clk 0:00:46.1]} 28... Rxf2 {[%clk 0:00:50.1]} 29. Rxf2
{[%clk 0:00:47]} 29... Kf7 {[%clk 0:00:40.7]} 30. Kh2 {[%clk 0:00:40]} 30... Re8
{[%clk 0:00:19.8]} 31. f6 {[%clk 0:00:32.1]} 31... Rg8 {[%clk 0:00:17.7]} 32.
Rf4 {[%clk 0:00:25.6]} 32... Re8 {[%clk 0:00:12.5]} 33. Kg3 {[%clk 0:00:18]}
33... Re2 {[%clk 0:00:11.7]} 34. Rh4 {[%clk 0:00:18.1]} 34... Bf5 {[%clk
0:00:11.3]} 35. c4 {[%clk 0:00:08.3]} 35... dxc4 {[%clk 0:00:06.9]} 36. c3
{[%clk 0:00:09]} 36... Bd3 {[%clk 0:00:06.4]} 37. Rh5 {[%clk 0:00:07.3]} 37...
Re8 {[%clk 0:00:04.9]} 38. Rc5 {[%clk 0:00:03.8]} 38... Re4 {[%clk 0:00:03.1]}
39. Kf3 {[%clk 0:00:03.9]} 39... Re6 {[%clk 0:00:03]} 40. h4 {[%clk 0:00:04.2]}
40... Re8 {[%clk 0:00:03.2]} 41. h5 {[%clk 0:00:04.7]} 41... Re4 {[%clk
0:00:03.6]} 42. Rg5 {[%clk 0:00:04.7]} 42... Re8 {[%clk 0:00:01.5]} 43. Rg7+
{[%clk 0:00:04.9]} 43... Ke6 {[%clk 0:00:02.1]} 44. Rxb7 {[%clk 0:00:04.8]}
44... Rf8 {[%clk 0:00:01.5]} 45. Kf4 {[%clk 0:00:05]} 45... Rf7 {[%clk 0:00:02]}
46. Rb6 {[%clk 0:00:05.1]} 46... Kd5 {[%clk 0:00:02.5]} 47. Rxa6 {[%clk
0:00:05.5]} 47... c5 {[%clk 0:00:02.6]} 48. Be5 {[%clk 0:00:05.8]} 48... Be2
{[%clk 0:00:02.5]} 49. Rd6# {[%clk 0:00:05.6]} 1-0

[Event "*** SCC Grand Prix: Titled Tuesday Blitz"]
[Site "Chess.com"]
[Date "2020.06.23"]
[Round "4"]
[White "shnitez"]
[Black "KubaGepard"]
[Result "1-0"]
[WhiteElo "2512"]
[BlackElo "2330"]
[TimeControl "180+1"]
[EndTime "10:40:25 PDT"]
[Termination "shnitez won by resignation"]

1. d4 {[%clk 0:03:00.9]} 1... d5 {[%clk 0:02:59.9]} 2. c4 {[%clk 0:03:00.8]}
2... dxc4 {[%clk 0:03:00.8]} 3. e3 {[%clk 0:03:00.7]} 3... Nf6 {[%clk
0:03:00.8]} 4. Bxc4 {[%clk 0:03:00.5]} 4... e6 {[%clk 0:03:01.7]} 5. Nf3 {[%clk
0:03:00.2]} 5... c5 {[%clk 0:03:02.3]} 6. O-O {[%clk 0:02:58.5]} 6... Nc6 {[%clk
0:03:02.8]} 7. Qe2 {[%clk 0:02:58.2]} 7... a6 {[%clk 0:03:01.6]} 8. Rd1 {[%clk
0:02:57.2]} 8... b5 {[%clk 0:03:00.8]} 9. dxc5 {[%clk 0:02:49.9]} 9... Qc7
{[%clk 0:03:00.4]} 10. Bb3 {[%clk 0:02:37]} 10... Bxc5 {[%clk 0:02:59.6]} 11.
Bd2 {[%clk 0:02:25.9]} 11... O-O {[%clk 0:02:55.8]} 12. Nc3 {[%clk 0:02:17]}
12... Bb7 {[%clk 0:02:47.7]} 13. Rac1 {[%clk 0:02:13.8]} 13... Qe7 {[%clk
0:02:46.8]} 14. a3 {[%clk 0:02:06.3]} 14... Rac8 {[%clk 0:02:39.8]} 15. h3
{[%clk 0:02:03.6]} 15... h6 {[%clk 0:02:38.7]} 16. Be1 {[%clk 0:01:33.3]} 16...
Na5 {[%clk 0:02:25.2]} 17. Nd5 {[%clk 0:01:16.1]} 17... Bxd5 {[%clk 0:01:40.9]}
18. Bxd5 {[%clk 0:01:15.2]} 18... Nxd5 {[%clk 0:01:40.9]} 19. Bxa5 {[%clk
0:01:14]} 19... Bb6 {[%clk 0:01:36.5]} 20. Be1 {[%clk 0:00:33]} 20... Qf6 {[%clk
0:01:30.7]} 21. Qd3 {[%clk 0:00:20.7]} 21... Rxc1 {[%clk 0:01:21.6]} 22. Rxc1
{[%clk 0:00:20.9]} 22... Qxb2 {[%clk 0:01:21.4]} 23. Rb1 {[%clk 0:00:19.8]}
23... Qf6 {[%clk 0:01:14.8]} 24. a4 {[%clk 0:00:19.6]} 24... Rd8 {[%clk
0:01:08.6]} 25. Qe2 {[%clk 0:00:15.7]} 25... bxa4 {[%clk 0:01:02.4]} 26. Qxa6
{[%clk 0:00:12.5]} 26... Bc5 {[%clk 0:00:49.1]} 27. Qxa4 {[%clk 0:00:12]} 27...
Qg6 {[%clk 0:00:45.4]} 28. Rd1 {[%clk 0:00:11.1]} 28... Kh7 {[%clk 0:00:42.9]}
29. Ne5 {[%clk 0:00:09.5]} 29... Qg5 {[%clk 0:00:39]} 30. Nxf7 {[%clk
0:00:08.9]} 30... Qe7 {[%clk 0:00:23.2]} 31. Nxd8 {[%clk 0:00:08.8]} 31... Qxd8
{[%clk 0:00:24.1]} 32. Qe4+ {[%clk 0:00:08.6]} 32... g6 {[%clk 0:00:22.4]} 33.
Qxe6 {[%clk 0:00:09.5]} 33... Nf4 {[%clk 0:00:18.8]} 34. Rxd8 {[%clk 0:00:07.2]}
34... Nxe6 {[%clk 0:00:18.8]} 35. Rd7+ {[%clk 0:00:07.6]} 35... Kg8 {[%clk
0:00:19.4]} 36. Bc3 {[%clk 0:00:08.5]} 36... Kf8 {[%clk 0:00:19]} 37. Rh7 {[%clk
0:00:07.4]} 37... h5 {[%clk 0:00:19.5]} 38. g3 {[%clk 0:00:05.8]} 38... Bd6
{[%clk 0:00:18.3]} 39. Rd7 {[%clk 0:00:05]} 39... Bc5 {[%clk 0:00:17.8]} 40. Rd3
{[%clk 0:00:05]} 40... Be7 {[%clk 0:00:17.7]} 41. Kg2 {[%clk 0:00:05.2]} 41...
Kf7 {[%clk 0:00:18.2]} 42. f4 {[%clk 0:00:05.5]} 42... Nc5 {[%clk 0:00:18.2]}
43. Rd5 {[%clk 0:00:04.6]} 43... Ne4 {[%clk 0:00:18]} 44. Bd4 {[%clk 0:00:04.2]}
44... Nd6 {[%clk 0:00:17.9]} 45. Ra5 {[%clk 0:00:03.9]} 45... Nf5 {[%clk
0:00:18.3]} 46. Ra2 {[%clk 0:00:03.7]} 46... Ke6 {[%clk 0:00:18.1]} 47. Rf2
{[%clk 0:00:04]} 47... Kd5 {[%clk 0:00:18.2]} 48. Kf3 {[%clk 0:00:04.3]} 48...
Nd6 {[%clk 0:00:15.7]} 49. Re2 {[%clk 0:00:04.3]} 49... Ne4 {[%clk 0:00:15.1]}
50. Rc2 {[%clk 0:00:04.6]} 50... Bd6 {[%clk 0:00:15]} 51. g4 {[%clk 0:00:04.9]}
51... hxg4+ {[%clk 0:00:13.9]} 52. hxg4 {[%clk 0:00:05.8]} 52... g5 {[%clk
0:00:14.5]} 53. Ra2 {[%clk 0:00:05.8]} 53... gxf4 {[%clk 0:00:14]} 54. Ra5+
{[%clk 0:00:06.7]} 54... Bc5 {[%clk 0:00:10.2]} 55. Bxc5 {[%clk 0:00:06.3]}
55... Nxc5 {[%clk 0:00:11.1]} 56. exf4 {[%clk 0:00:06.3]} 56... Kd4 {[%clk
0:00:11]} 57. Rxc5 {[%clk 0:00:06.6]} 57... Kxc5 {[%clk 0:00:11.9]} 58. g5
{[%clk 0:00:07.5]} 58... Kd6 {[%clk 0:00:12.8]} 59. Kg4 {[%clk 0:00:08.4]} 59...
Ke7 {[%clk 0:00:13.3]} 60. f5 {[%clk 0:00:08.5]} 60... Kf7 {[%clk 0:00:14.2]}
61. f6 {[%clk 0:00:09.4]} 61... Kg6 {[%clk 0:00:14.2]} 62. Kf4 {[%clk
0:00:09.6]} 62... Kf7 {[%clk 0:00:15.1]} 63. Kf5 {[%clk 0:00:10.5]} 63... Kg8
{[%clk 0:00:15]} 64. Ke6 {[%clk 0:00:11.4]} 64... Kf8 {[%clk 0:00:15.9]} 65. f7
{[%clk 0:00:11.5]} 65... Kg7 {[%clk 0:00:16.3]} 66. Ke7 {[%clk 0:00:12.4]} 66...
Kg6 {[%clk 0:00:17.2]} 1-0

[Event "*** SCC Grand Prix: Titled Tuesday Blitz"]
[Site "Chess.com"]
[Date "2020.06.23"]
[Round "4"]
[White "Airquake"]
[Black "Maksimus1998"]
[Result "1/2-1/2"]
[WhiteElo "2662"]
[BlackElo "2479"]
[TimeControl "180+1"]
[EndTime "10:40:27 PDT"]
[Termination "Game drawn by stalemate"]

1. e4 {[%clk 0:03:00.9]} 1... c5 {[%clk 0:02:59.5]} 2. Nf3 {[%clk 0:03:01.3]}
2... g6 {[%clk 0:02:59.5]} 3. Nc3 {[%clk 0:03:00.8]} 3... Bg7 {[%clk 0:02:58.8]}
4. Be2 {[%clk 0:03:00.8]} 4... Nc6 {[%clk 0:02:58.2]} 5. O-O {[%clk 0:03:01.4]}
5... d6 {[%clk 0:02:54.9]} 6. d3 {[%clk 0:03:01.8]} 6... Nf6 {[%clk 0:02:53.5]}
7. h3 {[%clk 0:03:02.2]} 7... O-O {[%clk 0:02:53.6]} 8. Be3 {[%clk 0:02:59.4]}
8... a6 {[%clk 0:02:52.9]} 9. a4 {[%clk 0:02:58]} 9... Rb8 {[%clk 0:02:34.6]}
10. d4 {[%clk 0:02:54.6]} 10... cxd4 {[%clk 0:02:34.2]} 11. Nxd4 {[%clk
0:02:54.5]} 11... Bd7 {[%clk 0:02:30.1]} 12. Nb3 {[%clk 0:02:45.2]} 12... Na5
{[%clk 0:02:27.5]} 13. f4 {[%clk 0:02:38.9]} 13... Nxb3 {[%clk 0:02:25.7]} 14.
cxb3 {[%clk 0:02:39.8]} 14... Bc6 {[%clk 0:02:24.8]} 15. Bf3 {[%clk 0:02:38.8]}
15... Qa5 {[%clk 0:02:21.5]} 16. Qd2 {[%clk 0:02:11.1]} 16... Qb4 {[%clk
0:02:19.1]} 17. e5 {[%clk 0:02:06.6]} 17... dxe5 {[%clk 0:02:16.1]} 18. fxe5
{[%clk 0:02:05.9]} 18... Rbd8 {[%clk 0:02:10.1]} 19. Qf2 {[%clk 0:01:35.2]}
19... Nd5 {[%clk 0:01:43.8]} 20. Bc5 {[%clk 0:01:20.6]} 20... Qxb3 {[%clk
0:01:43.3]} 21. Ra3 {[%clk 0:01:08.8]} 21... Qc4 {[%clk 0:01:41.3]} 22. Be2
{[%clk 0:01:09.2]} 22... Qf4 {[%clk 0:01:19.2]} 23. Qxf4 {[%clk 0:01:09.2]}
23... Nxf4 {[%clk 0:01:20.1]} 24. Rxf4 {[%clk 0:01:10.1]} 24... Bxe5 {[%clk
0:01:20.5]} 25. Rf1 {[%clk 0:01:07.6]} 25... Rd2 {[%clk 0:01:20.1]} 26. Bf3
{[%clk 0:00:55.5]} 26... Rxb2 {[%clk 0:01:19.7]} 27. Bxc6 {[%clk 0:00:53.9]}
27... bxc6 {[%clk 0:01:15.6]} 28. Bxe7 {[%clk 0:00:47.6]} 28... Bd4+ {[%clk
0:01:15.5]} 29. Kh1 {[%clk 0:00:47.4]} 29... Re8 {[%clk 0:01:16.4]} 30. Bf6
{[%clk 0:00:37.6]} 30... Bxf6 {[%clk 0:01:10.2]} 31. Rxf6 {[%clk 0:00:38.5]}
31... Re3 {[%clk 0:01:10.8]} 32. Rxc6 {[%clk 0:00:29.1]} 32... a5 {[%clk
0:01:05.3]} 33. Kh2 {[%clk 0:00:27.4]} 33... Kg7 {[%clk 0:01:03.7]} 34. Nd1
{[%clk 0:00:27.7]} 34... Rxg2+ {[%clk 0:01:02.6]} 35. Kxg2 {[%clk 0:00:25.2]}
35... Rxa3 {[%clk 0:01:03.5]} 36. Rc4 {[%clk 0:00:25.3]} 36... h5 {[%clk
0:01:01]} 37. Nc3 {[%clk 0:00:25.7]} 37... g5 {[%clk 0:00:57.7]} 38. Ne4 {[%clk
0:00:19.8]} 38... Kg6 {[%clk 0:00:54.8]} 39. Rc6+ {[%clk 0:00:18]} 39... Kf5
{[%clk 0:00:54]} 40. Nd6+ {[%clk 0:00:18.4]} 40... Kf4 {[%clk 0:00:52.2]} 41.
Rc4+ {[%clk 0:00:18.4]} 41... Ke5 {[%clk 0:00:41.6]} 42. Nxf7+ {[%clk
0:00:18.3]} 42... Kd5 {[%clk 0:00:42.1]} 43. Rc8 {[%clk 0:00:05.2]} 43... g4
{[%clk 0:00:42.3]} 44. h4 {[%clk 0:00:05]} 44... Rxa4 {[%clk 0:00:35.4]} 45. Rh8
{[%clk 0:00:05]} 45... Ra2+ {[%clk 0:00:35.5]} 46. Kg3 {[%clk 0:00:05.2]} 46...
Ra3+ {[%clk 0:00:35.1]} 47. Kg2 {[%clk 0:00:04.1]} 47... Ra2+ {[%clk 0:00:35.3]}
48. Kf1 {[%clk 0:00:04.3]} 48... a4 {[%clk 0:00:30.9]} 49. Rxh5+ {[%clk
0:00:02.4]} 49... Ke4 {[%clk 0:00:31.4]} 50. Ra5 {[%clk 0:00:01.6]} 50... g3
{[%clk 0:00:29.5]} 51. Ng5+ {[%clk 0:00:01.3]} 51... Kf4 {[%clk 0:00:29.3]} 52.
h5 {[%clk 0:00:02.2]} 52... Rh2 {[%clk 0:00:25.1]} 53. Ne6+ {[%clk 0:00:02.6]}
53... Kf3 {[%clk 0:00:25]} 54. Ng5+ {[%clk 0:00:02.7]} 54... Kg4 {[%clk
0:00:23.9]} 55. h6 {[%clk 0:00:02.4]} 55... Rxh6 {[%clk 0:00:22.4]} 56. Kg1
{[%clk 0:00:03.3]} 56... Rh5 {[%clk 0:00:21.3]} 57. Rxa4+ {[%clk 0:00:03.8]}
57... Kxg5 {[%clk 0:00:21.1]} 58. Ra5+ {[%clk 0:00:04.4]} 58... Kh4 {[%clk
0:00:20.2]} 59. Rxh5+ {[%clk 0:00:05.3]} 59... Kxh5 {[%clk 0:00:21.1]} 60. Kg2
{[%clk 0:00:05.9]} 60... Kg4 {[%clk 0:00:21.7]} 61. Kg1 {[%clk 0:00:06.4]} 61...
Kf3 {[%clk 0:00:22.1]} 62. Kf1 {[%clk 0:00:06.9]} 62... g2+ {[%clk 0:00:19.4]}
63. Kg1 {[%clk 0:00:07.2]} 63... Kg3 {[%clk 0:00:20.3]} 1/2-1/2